bitfinex-derivatives/quotes_ETHF0:USTF0_20250910
["timestamp","ask_amount","ask_price","bid_price","bid_amount"]
[1757507330525,0.62003747,4348.3,4347.6,3.2078]
[1757507330724,0.62003747,4348.2,4347.6,3.2078]
[1757507330918,3.2078,4348.4,4347.6,3.2078]
[1757507331119,0.62013977,4348.3,4347.6,3.2078]
[1757507331424,0.62013977,4348.2,4347.6,3.2078]
[1757507331719,3.2078,4348.4,4347.6,3.2078]
[1757507332025,0.62026111,4348.3,4347.6,3.2078]
[1757507332222,0.62026111,4348.2,4347.6,3.2078]
[1757507332527,3.2078,4348.4,4347.6,3.2078]
[1757507332722,0.62040333,4348.3,4347.6,3.2078]
[1757507332922,0.62040333,4348.2,4347.6,3.2078]
[1757507333121,3.2078,4348.4,4347.6,3.2078]
[1757507333326,0.62040372,4348.3,4347.6,3.2078]
[1757507333526,0.62040372,4348.2,4347.6,3.2078]
[1757507333726,3.2078,4348.4,4347.6,3.2078]
[1757507333927,0.62057122,4348.3,4347.6,3.2078]
[1757507334233,0.62057122,4348.2,4347.6,3.2078]
[1757507334432,0.62057122,4348.1,4347.6,3.2078]
[1757507334627,3.2078,4348.4,4347.6,3.2078]
[1757507334924,0.62079647,4348.3,4347.6,3.2078]
[1757507335121,0.62079647,4348.2,4347.6,3.2078]
[1757507335320,0.6210698,4348.1,4347.6,3.2078]
[1757507335627,3.43779,4348.4,4347.3,0.235]
[1757507335821,0.62106986,4348.3,4347.3,0.235]
[1757507336021,0.62106986,4348.2,4347.1,3.2078]
[1757507336327,3.2078,4347.9,4347.1,3.2078]
[1757507336627,0.6213825,4347.8,4347.1,3.2078]
[1757507336927,3.2078,4347.9,4347.1,3.2078]
[1757507337225,0.62139272,4347.8,4347.1,3.2078]
[1757507337429,3.2078,4347.9,4347.1,3.2078]
[1757507337618,0.62173073,4347.8,4347.1,3.2078]
[1757507337820,0.62173073,4347.7,4347.1,3.2078]
[1757507338022,3.2078,4347.9,4347.1,3.2078]
[1757507338224,0.62174144,4347.8,4347.1,3.2078]
[1757507338525,0.62219329,4347.7,4347.1,3.2078]
[1757507338823,3.2078,4347.9,4347.1,3.2078]
[1757507339023,0.62219365,4347.8,4347.1,3.2078]
[1757507339218,0.62219365,4347.7,4347.1,3.2078]
[1757507339428,3.2078,4347.9,4347.1,3.2078]
[1757507339622,0.62246993,4347.8,4347.1,3.2078]
[1757507339931,0.62246993,4347.7,4347.1,3.2078]
[1757507340131,3.2078,4347.9,4347.1,3.2078]
[1757507341323,3.2078,4347.9,4347.2,0.235]
[1757507341523,3.2078,4347.9,4347.2,0.46501999]
[1757507342725,3.2078,4347.9,4347.2,0.235]
[1757507350041,3.2078,4347.9,4347.1,3.2078]
[1757507350240,3.2078,4347.9,4347.1,3.43781999]
[1757507351239,0.235,4348.2,4347.1,3.43781999]
[1757507351240,0.235,4348.2,4347.2,3.19672283]
[1757507351541,0.235,4348.2,4347.4,0.41398]
[1757507352141,0.235,4348.2,4347.2,3.38070284]
[1757507352437,0.235,4348.2,4347.4,0.41398]
[1757507352641,0.235,4348.2,4347.2,3.19671284]
[1757507353431,3.2078,4348.4,4347.2,3.19671284]
[1757507353637,0.23,4348.3,4347.2,3.19671284]
[1757507354145,3.2078,4348.4,4347.2,3.19671284]
[1757507354343,0.23,4348.3,4347.2,2.96670284]
[1757507354743,3.2078,4348.4,4347.2,3.19670283]
[1757507355043,0.23,4348.3,4347.2,3.19670283]
[1757507355443,3.2078,4348.4,4347.2,3.19670283]
[1757507355645,0.23,4348.3,4347.2,2.96670284]
[1757507356038,3.2078,4348.4,4347.2,3.19670283]
[1757507356342,0.23,4348.3,4347.2,2.96670284]
[1757507357143,3.2078,4348.4,4347.2,3.19670283]
[1757507357342,0.23,4348.3,4347.2,2.96670284]
[1757507357945,3.2078,4348.4,4347.2,3.19670283]
[1757507358146,0.23,4348.3,4347.2,2.96670284]
[1757507358745,3.2078,4348.4,4347.2,3.19670283]
[1757507358947,0.23,4348.3,4347.2,2.96670284]
[1757507359350,3.2078,4348.4,4347.2,3.19670283]
[1757507359648,0.23,4348.3,4347.2,2.96670284]
[1757507360049,3.2078,4348.4,4347.2,3.19670283]
[1757507360249,0.23,4348.3,4347.2,2.96670284]
[1757507360848,3.2078,4348.4,4347.3,0.22999999]
[1757507361141,0.23,4348.3,4347.4,2.93347328]
[1757507361547,3.2078,4348.4,4347.3,2.93347328]
[1757507361748,0.23,4348.3,4347.1,3.8090554]
[1757507362049,0.23,4348.3,4347.4,3.00427819]
[1757507362253,0.23,4348.3,4347.3,3.00427819]
[1757507362546,0.23,4348.3,4347.1,3.8090554]
[1757507362747,3.2078,4348.4,4347.4,3.00427819]
[1757507362946,0.23,4348.3,4347.3,3.04458817]
[1757507363140,0.23,4348.3,4347.1,3.8090554]
[1757507363342,0.23,4348.3,4347.3,3.04458817]
[1757507363846,0.23,4348.3,4347.1,3.8090554]
[1757507364048,0.23,4348.3,4347.4,3.00292871]
[1757507364249,0.23,4348.3,4347.3,3.00292871]
[1757507364448,0.23,4348.3,4347.3,0.22999999]
[1757507364649,0.23,4348.3,4347.4,3.00292871]
[1757507365043,0.23,4348.3,4347.2,3.02934027]
[1757507365345,0.23,4348.3,4347.3,0.22999999]
[1757507365644,0.23,4348.3,4347.4,3.02934027]
[1757507366149,0.23,4348.3,4347.2,3.02198496]
[1757507366347,0.23,4348.3,4347.3,0.22999999]
[1757507366548,0.23,4348.3,4347.3,3.02198496]
[1757507366746,0.23,4348.3,4347.2,3.02198496]
[1757507367048,0.23,4348.3,4347.3,0.22999999]
[1757507367247,0.23,4348.3,4347.1,3.80792125]
[1757507367248,0.23,4348.3,4347.2,3.18934309]
[1757507367450,0.23,4348.3,4347.4,2.95933309]
[1757507367648,0.23,4348.3,4347.3,3.18933308]
[1757507367849,0.23,4348.3,4347.3,2.95933309]
[1757507368048,0.23,4348.3,4347.2,3.0118975]
[1757507368246,0.23,4348.3,4347.4,3.0118975]
[1757507368452,0.23,4348.3,4347.2,3.2419075]
[1757507368751,0.23001,4348.2,4347.4,2.92894453]
[1757507369051,0.23,4348.3,4347.3,3.15894452]
[1757507369251,0.23,4348.3,4347.1,3.80792125]
[1757507369452,0.23001,4348.2,4347.4,2.92894453]
[1757507369647,0.23,4348.3,4347.4,2.92894453]
[1757507369951,0.23,4348.3,4347.1,3.39391125]
[1757507370146,3.2078,4348.4,4347.2,0.23001]
[1757507370351,0.23,4348.3,4347.3,3.02472926]
[1757507370541,0.23,4348.3,4347.2,3.02472926]
[1757507370745,0.23,4348.2,4347.2,0.22999999]
[1757507370946,0.23,4348.3,4347.2,0.22999999]
[1757507371252,0.23,4348.3,4347.1,3.39391125]
[1757507371454,3.2078,4348.4,4347.2,0.23001]
[1757507371657,0.23,4348.3,4347.2,3.17767036]
[1757507371851,0.23,4348.3,4347.2,2.94766036]
[1757507372050,0.23,4348.2,4347.2,2.94766036]
[1757507372253,0.23,4348.3,4347.2,2.94766036]
[1757507372854,0.23,4348.2,4347.2,2.94766036]
[1757507373153,0.23,4348.3,4347.2,2.94766036]
[1757507373556,0.23,4348.2,4347.2,2.94766036]
[1757507373854,0.23,4348.3,4347.2,2.94766036]
[1757507374244,0.23,4348.2,4347.1,3.39391125]
[1757507374547,0.17,4348.9,4347.6,3.2078]
[1757507374855,0.22999,4348.8,4347.6,3.2078]
[1757507375256,0.22998,4348.7,4347.6,3.2078]
[1757507375451,0.22998,4348.8,4347.6,3.2078]
[1757507375955,0.22998,4348.7,4347.6,3.2078]
[1757507376255,0.22998,4348.8,4347.6,3.39203899]
[1757507376754,0.22998,4348.7,4347.6,3.39203899]
[1757507377053,0.22998,4348.8,4347.6,3.39203899]
[1757507377552,0.22998,4348.7,4347.6,3.39203899]
[1757507377752,0.22998,4348.8,4347.6,3.39203899]
[1757507377956,3.2078,4348.5,4347.6,3.39203899]
[1757507378143,3.2078,4348.5,4347.6,3.2078]
[1757507378349,0.22999,4348.4,4347.6,3.2078]
[1757507378749,0.22999,4348.3,4347.6,3.2078]
[1757507378956,3.2078,4348.5,4347.6,3.2078]
[1757507379145,0.22999,4348.4,4347.6,3.2078]
[1757507379554,0.22999,4348.3,4347.6,3.2078]
[1757507379857,0.22999,4348.4,4347.6,3.2078]
[1757507380750,3.2078,4348.5,4347.6,3.2078]
[1757507381054,3.43779,4348.5,4347.6,3.2078]
[1757507382850,3.2078,4348.5,4347.6,3.2078]
[1757507383149,0.22999,4348.4,4347.6,3.2078]
[1757507383357,3.2078,4348.0,4347.1,3.2078]
[1757507383852,0.23001,4347.9,4347.1,3.2078]
[1757507384358,3.2078,4347.3,4346.3,3.2078]
[1757507385058,3.2078,4347.3,4345.7,3.2078]
[1757507385059,3.2078,4346.7,4345.7,3.2078]
[1757507385252,0.2298,4346.6,4345.7,3.2078]
[1757507385655,3.2078,4346.2,4345.2,3.2078]
[1757507386358,3.2078,4346.2,4345.3,3.18220976]
[1757507386549,3.2078,4346.2,4345.3,2.95209977]
[1757507390352,3.2078,4346.2,4345.2,3.2078]
[1757507395671,3.2078,4346.2,4345.3,3.18919989]
[1757507395868,3.2078,4346.2,4345.3,2.9590899]
[1757507397167,3.2078,4346.2,4345.3,3.18919989]
[1757507397464,3.2078,4346.9,4345.8,3.2078]
[1757507397667,0.2298,4346.8,4345.8,3.2078]
[1757507401175,3.2078,4346.3,4345.3,3.2078]
[1757507401470,3.2078,4351.2,4346.9,3.2078]
[1757507401771,5.39613505,4357.3,4351.8,2.304]
[1757507401772,3.55313505,4357.3,4351.8,2.304]
[1757507402074,0.17,4358.9,4348.5,207.117]
[1757507402075,0.17,4358.9,4354.2,10.33321]
[1757507402267,0.17,4358.9,4354.6,10.74549]
[1757507402463,0.17,4358.9,4355.6,10.74316]
[1757507402670,0.17,4358.9,4355.8,10.74273]
[1757507402869,0.17,4358.9,4358.1,3.2078]
[1757507403065,0.17,4358.9,4358.8,3.2078]
[1757507403270,3.2078,4362.5,4358.9,10.73507]
[1757507403477,3.2078,4362.8,4359.9,13.94034]
[1757507403669,3.2078,4364.0,4362.3,3.2078]
[1757507404065,3.2078,4364.0,4362.8,3.2078]
[1757507404978,3.2078,4364.0,4362.8,2.8839]
[1757507405178,33.118,4364.6,4363.9,2.8839]
[1757507405478,33.118,4364.6,4363.8,3.2078]
[1757507405772,33.118,4364.6,4364.4,3.2078]
[1757507406181,3.2078,4366.1,4364.4,3.2078]
[1757507406377,3.2078,4366.1,4361.1,10.31652]
[1757507406378,33.103,4366.8,4364.5,2.92981068]
[1757507406578,3.2078,4366.6,4365.3,3.2078]
[1757507406781,33.103,4366.8,4363.2,2.92981068]
[1757507406983,33.103,4366.8,4364.6,3.2078]
[1757507407181,3.2078,4366.3,4365.3,3.2078]
[1757507407377,33.103,4366.8,4364.7,3.2078]
[1757507407579,3.2078,4366.9,4365.8,3.2078]
[1757507407781,3.2078,4366.9,4362.6,10.31295]
[1757507407782,0.17,4368.9,4366.5,3.2078]
[1757507407980,3.2078,4368.1,4366.2,3.2078]
[1757507408287,3.2078,4367.7,4366.5,3.2078]
[1757507408586,3.2078,4368.1,4367.1,3.2078]
[1757507408883,3.2078,4368.5,4367.1,3.2078]
[1757507409084,3.3778,4368.9,4367.9,3.2078]
[1757507409281,3.2078,4368.2,4366.8,3.2078]
[1757507409476,3.2078,4367.0,4364.9,3.2078]
[1757507409677,3.2078,4366.3,4364.9,3.2078]
[1757507409983,50.974,4368.1,4365.5,3.2078]
[1757507409984,3.2078,4367.9,4365.5,3.2078]
[1757507410181,0.17,4368.9,4365.5,3.2078]
[1757507410382,3.2078,4367.2,4366.1,3.2078]
[1757507410582,3.2078,4368.7,4366.6,3.2078]
[1757507410888,17.9,4368.6,4366.6,3.2078]
[1757507411088,3.2078,4368.4,4366.6,3.2078]
[1757507411381,3.2078,4367.9,4366.5,3.2078]
[1757507411582,0.35216848,4368.9,4367.4,3.2078]
[1757507411785,3.2078,4371.5,4368.4,3.2078]
[1757507411986,3.2078,4372.0,4369.9,3.2078]
[1757507412181,1.80557107,4372.7,4369.9,3.2078]
[1757507412386,3.2078,4371.7,4369.9,3.2078]
[1757507412686,3.2078,4373.4,4370.6,3.2078]
[1757507412989,0.18721449,4374.4,4369.9,2.91408499]
[1757507413185,3.2078,4375.5,4373.7,3.2078]
[1757507413383,18.1274,4374.3,4372.5,3.2078]
[1757507413582,3.2078,4373.7,4371.5,3.2078]
[1757507413787,3.2078,4373.4,4372.1,1.0492879]
[1757507414084,3.2078,4373.7,4372.2,6.11446429]
[1757507414293,0.2274,4374.3,4372.7,3.2078]
[1757507414483,3.2078,4373.7,4372.7,3.2078]
[1757507414679,3.2078,4373.2,4371.4,3.2078]
[1757507414888,3.2078,4372.7,4370.8,3.2078]
[1757507415187,3.2078,4372.7,4368.1,33.031]
[1757507415188,3.2078,4371.2,4369.1,3.2078]
[1757507415390,3.1377,4371.3,4369.1,3.2078]
[1757507415590,3.2078,4369.7,4369.2,3.03442627]
[1757507415791,3.2078,4369.7,4368.1,33.031]
[1757507415792,3.2078,4369.3,4368.1,33.031]
[1757507415987,3.2078,4371.6,4368.7,2.90632707]
[1757507416189,3.2078,4370.6,4369.2,3.2078]
[1757507416393,3.2078,4371.0,4369.0,3.2078]
[1757507416589,3.2078,4370.3,4369.3,2.90632707]
[1757507416791,3.2078,4370.2,4368.8,2.90632707]
[1757507417090,0.2274,4374.3,4369.1,2.97068344]
[1757507417091,3.2078,4370.8,4369.1,2.97068344]
[1757507417283,3.2078,4370.8,4369.4,3.2078]
[1757507417486,0.2274,4374.3,4367.0,10.30269]
[1757507417487,3.2078,4371.5,4369.9,3.2078]
[1757507417694,3.2078,4371.5,4368.4,2.97068344]
[1757507417695,3.2078,4372.3,4370.9,3.2078]
[1757507417898,3.2078,4372.6,4370.7,33.015]
[1757507418197,3.2078,4372.6,4371.0,10.29331]
[1757507418400,0.2274,4374.3,4371.0,2.98497242]
[1757507418692,0.2274,4374.3,4371.1,3.2078]
[1757507419191,0.2274,4374.3,4370.8,2.98497242]
[1757507419192,0.2274,4374.3,4373.4,3.2078]
[1757507419388,3.2078,4373.5,4371.8,3.2078]
[1757507419590,3.2078,4372.5,4371.2,3.2078]
[1757507419883,3.2078,4372.3,4370.2,3.2078]
[1757507420082,2.7078,4372.3,4370.7,3.2078]
[1757507420290,3.2078,4373.2,4371.4,3.2078]
[1757507420599,0.2274,4374.3,4372.7,3.2078]
[1757507420793,0.2274,4374.3,4373.8,3.2078]
[1757507421189,3.2078,4374.1,4371.9,3.2078]
[1757507421393,0.2274,4374.3,4371.9,1.78943594]
[1757507421394,3.2078,4372.8,4371.9,1.78943594]
[1757507421592,0.2274,4374.3,4371.9,1.78943594]
[1757507421593,3.2078,4373.3,4371.9,3.2078]
[1757507421791,3.4352,4374.3,4371.9,3.2078]
[1757507421994,0.2274,4374.3,4373.4,3.2078]
[1757507422301,0.2274,4374.3,4373.5,3.2078]
[1757507422503,3.4352,4374.3,4372.5,3.2078]
[1757507422795,3.2078,4376.4,4373.9,3.2078]
[1757507422999,3.2078,4375.1,4374.1,3.2078]
[1757507423199,3.2078,4375.7,4374.1,3.2078]
[1757507423401,32.989,4378.3,4374.9,3.2078]
[1757507423703,3.2078,4377.4,4375.9,3.2078]
[1757507423892,3.2078,4377.4,4376.7,3.2078]
[1757507424097,3.2078,4377.9,4376.7,3.2078]
[1757507424300,3.5578,4380.0,4377.7,3.2078]
[1757507424491,3.2078,4377.8,4376.1,3.2078]
[1757507424801,32.976,4379.5,4376.4,1.85503518]
[1757507425100,3.2078,4376.6,4375.2,3.2078]
[1757507425294,3.2078,4376.5,4374.8,3.2078]
[1757507425594,3.2078,4375.0,4374.5,1.8329857]
[1757507425994,3.2078,4375.7,4373.3,3.2078]
[1757507426195,3.2078,4376.1,4374.6,3.00607548]
[1757507426393,3.2078,4376.7,4375.7,3.2078]
[1757507426596,3.2078,4376.7,4375.2,3.2078]
[1757507426900,3.2078,4375.7,4374.2,3.2078]
[1757507427086,3.2078,4376.0,4375.0,3.2078]
[1757507427292,3.2078,4375.7,4374.6,3.2078]
[1757507427497,3.2078,4375.5,4374.3,2.91879962]
[1757507427797,3.2078,4376.0,4374.0,3.2078]
[1757507427992,3.2078,4376.0,4375.0,3.2078]
[1757507428194,3.2078,4375.7,4374.4,2.96351191]
[1757507428500,3.2078,4376.9,4375.2,3.2078]
[1757507428801,3.2078,4376.6,4375.2,3.2078]
[1757507429000,3.2078,4375.3,4373.4,3.2078]
[1757507429301,3.2078,4373.6,4372.2,3.2078]
[1757507429501,3.2078,4372.5,4371.5,3.2078]
[1757507429698,3.2078,4372.5,4370.7,2.9396312]
[1757507429699,3.2078,4372.0,4370.7,3.2078]
[1757507430204,3.2078,4371.2,4369.5,3.2078]
[1757507430399,3.2078,4370.4,4368.9,3.2078]
[1757507430696,3.2078,4371.3,4369.2,3.2078]
[1757507430892,3.2078,4371.3,4368.8,3.2078]
[1757507431096,3.2078,4370.8,4369.4,3.2078]
[1757507431297,3.2078,4371.3,4369.4,3.2078]
[1757507431491,17.9,4373.4,4370.0,3.2078]
[1757507431492,3.2078,4372.8,4370.0,3.2078]
[1757507431692,3.2078,4372.8,4366.8,4.62883087]
[1757507431693,3.2078,4371.5,4370.5,3.2078]
[1757507431999,1.80978481,4374.1,4367.9,32.957]
[1757507432000,3.2078,4372.5,4371.0,3.2078]
[1757507432303,3.2078,4372.5,4367.9,35.87351541]
[1757507432304,3.2078,4371.3,4369.5,3.2078]
[1757507432490,3.2078,4371.4,4369.3,3.2078]
[1757507432690,3.2078,4371.6,4369.9,3.2078]
[1757507432990,3.2078,4371.6,4367.9,32.957]
[1757507432991,3.2078,4372.8,4370.6,3.2078]
[1757507433192,3.2078,4373.7,4371.5,3.2078]
[1757507433396,3.2078,4374.4,4372.8,3.2078]
[1757507433801,3.2078,4373.6,4372.2,3.2078]
[1757507434002,32.957,4375.8,4371.1,3.2078]
[1757507434003,3.2078,4372.3,4371.1,3.2078]
[1757507434189,3.2078,4373.4,4372.3,2.98999397]
[1757507434393,3.2078,4373.8,4372.8,3.2078]
[1757507434594,3.2078,4373.8,4372.5,3.2078]
[1757507434795,3.2078,4374.4,4373.1,3.2078]
[1757507435197,3.2078,4374.4,4372.0,0.18144082]
[1757507435198,3.2078,4375.5,4374.2,3.2078]
[1757507435397,5.1498436,4388.8,4374.8,3.2078]
[1757507435398,3.2078,4376.0,4374.8,3.2078]
[1757507435601,3.2078,4374.9,4373.5,3.2078]
[1757507435809,3.2078,4375.5,4374.5,3.2078]
[1757507436099,3.2078,4374.9,4372.9,3.2078]
[1757507436292,3.2078,4373.6,4371.1,3.2078]
[1757507436493,3.2078,4371.2,4368.8,3.2078]
[1757507436806,3.2078,4369.9,4368.8,2.96285372]
[1757507437008,3.2078,4368.9,4368.0,3.2078]
[1757507437205,32.955,4372.8,4367.4,3.2078]
[1757507437506,3.2078,4370.0,4368.1,6.20114017]
[1757507437709,3.2078,4371.4,4368.7,3.2078]
[1757507438008,3.2078,4370.8,4369.3,3.2078]
[1757507438300,3.2078,4369.7,4368.6,3.2078]
[1757507438502,3.2078,4370.3,4368.6,3.2078]
[1757507439095,3.2078,4369.2,4368.1,3.2078]
[1757507439302,3.2078,4368.2,4366.7,3.2078]
[1757507439705,3.2078,4367.6,4366.7,3.2078]
[1757507439912,3.2078,4368.2,4366.7,3.2078]
[1757507440097,3.2078,4368.2,4366.8,2.94164442]
[1757507440298,3.2078,4368.9,4367.2,3.2078]
[1757507440604,3.2078,4368.3,4367.2,3.2078]
[1757507440808,3.2078,4367.3,4366.0,3.2078]
[1757507441001,1.82964314,4372.0,4365.5,3.2078]
[1757507441002,3.2078,4368.2,4365.5,3.2078]
[1757507441201,3.2078,4368.3,4366.2,3.2078]
[1757507441403,3.2078,4372.0,4368.2,3.2078]
[1757507441605,3.2078,4374.0,4371.9,3.2078]
[1757507441806,3.2078,4374.6,4373.6,3.2078]
[1757507442106,3.2078,4375.1,4373.0,3.2078]
[1757507442309,3.2078,4374.3,4373.0,3.2078]
[1757507442702,3.2078,4374.3,4372.0,0.00686524]
[1757507442703,3.2078,4373.1,4372.0,0.00686524]
[1757507442905,3.2078,4373.6,4372.0,0.00686524]
[1757507443210,3.2078,4373.0,4371.7,0.00686524]
[1757507443504,3.2078,4373.0,4372.3,3.2078]
[1757507443702,3.2078,4373.9,4372.9,3.2078]
[1757507444298,3.2078,4373.9,4373.1,3.2078]
[1757507444503,3.2078,4373.2,4371.0,3.2078]
[1757507444703,3.2078,4371.4,4369.9,3.2078]
[1757507444909,3.2078,4371.7,4369.9,3.2078]
[1757507445110,3.2078,4370.5,4369.2,3.2078]
[1757507445404,3.2078,4370.1,4368.5,3.2078]
[1757507445609,3.2078,4369.5,4368.5,3.2078]
[1757507445812,3.2078,4370.3,4368.5,3.2078]
[1757507446198,3.2078,4369.6,4368.5,3.2078]
[1757507446407,32.961,4372.1,4366.3,32.961]
[1757507446408,3.2078,4371.3,4369.2,3.2078]
[1757507446607,3.2078,4371.3,4370.2,3.2078]
[1757507446802,0.03981304,4373.8,4370.2,3.2078]
[1757507446803,3.2078,4372.5,4370.2,3.2078]
[1757507447104,2.304,4378.2,4368.8,32.962]
[1757507447105,3.2078,4373.4,4370.7,3.2078]
[1757507447308,3.2078,4373.4,4371.2,3.2078]
[1757507447499,3.2078,4372.3,4371.7,3.2078]
[1757507447709,3.2078,4372.3,4370.9,3.2078]
[1757507447900,3.2078,4372.5,4370.9,3.2078]
[1757507448103,3.2078,4371.0,4370.0,3.2078]
[1757507448308,3.2078,4372.0,4370.0,3.2078]
[1757507448512,3.2078,4371.7,4370.0,3.2078]
[1757507448710,3.2078,4371.7,4370.7,3.2078]
[1757507449506,3.2078,4371.1,4370.1,3.2078]
[1757507449711,3.2078,4370.4,4369.4,3.2078]
[1757507450108,3.2078,4370.9,4369.4,3.2078]
[1757507450513,3.2078,4370.9,4369.9,3.2078]
[1757507451104,3.2078,4371.5,4370.5,3.2078]
[1757507451305,3.2078,4370.6,4369.2,3.2078]
[1757507451513,3.2078,4371.1,4369.2,3.2078]
[1757507451712,3.2078,4371.5,4369.2,3.2078]
[1757507451917,3.2078,4371.5,4366.6,32.962]
[1757507451918,3.2078,4370.4,4369.4,3.2078]
[1757507452113,3.2078,4371.2,4369.4,3.2078]
[1757507452410,3.2078,4374.5,4371.1,3.2078]
[1757507452714,3.2078,4375.9,4373.7,3.2078]
[1757507452915,3.2078,4375.8,4374.9,3.2078]
[1757507453117,3.2078,4375.8,4375.1,3.2078]
[1757507453310,3.2078,4377.4,4375.7,3.2078]
[1757507453506,3.2078,4376.1,4375.1,3.2078]
[1757507454019,3.2078,4376.6,4376.0,3.2078]
[1757507454216,32.962,4376.9,4375.8,3.2078]
[1757507454415,3.2078,4376.4,4375.2,3.2078]
[1757507454610,3.2078,4376.4,4375.7,3.2078]
[1757507455213,3.2078,4376.4,4375.7,2.6734]
[1757507455414,3.2078,4376.4,4371.3,32.962]
[1757507455415,3.2078,4375.9,4374.6,3.2078]
[1757507457114,3.2078,4376.3,4375.1,3.2078]
[1757507457319,32.962,4376.9,4375.1,3.2078]
[1757507457320,3.2078,4376.7,4375.1,3.2078]
[1757507457522,3.2078,4376.4,4375.1,3.2078]
[1757507458116,3.2078,4376.4,4375.6,3.2078]
[1757507458318,3.2078,4375.9,4374.6,3.2078]
[1757507458622,3.2078,4376.4,4375.2,3.2078]
[1757507459223,3.2078,4376.4,4375.7,3.2078]
[1757507459522,0.397,4376.3,4374.9,0.5315]
[1757507459712,1.5685,4375.8,4374.7,3.3584]
[1757507459923,0.35,4380.0,4376.4,3.2078]
[1757507460124,0.35,4380.0,4378.1,3.2078]
[1757507460318,0.1531,4379.1,4378.3,3.2078]
[1757507460722,0.74,4380.0,4378.8,3.2078]
[1757507461021,0.35,4380.0,4378.8,6.22129438]
[1757507461216,0.35,4380.0,4378.8,10.22129438]
[1757507461816,0.35,4380.0,4379.9,3.2078]
[1757507462017,0.1531,4382.4,4379.9,3.2078]
[1757507462220,0.4972,4383.4,4381.7,3.2078]
[1757507462411,0.4972,4382.7,4382.0,3.2078]
[1757507462622,0.405,4383.2,4382.0,3.2078]
[1757507462819,0.1531,4383.6,4382.0,3.2078]
[1757507463018,0.4972,4383.1,4383.0,3.2078]
[1757507463214,0.17,4383.4,4383.0,3.2078]
[1757507463415,0.1531,4383.6,4383.0,3.2078]
[1757507463822,0.1531,4383.6,4379.0,32.936]
[1757507463823,0.4972,4384.0,4383.5,3.2078]
[1757507464027,0.4972,4385.6,4383.5,3.2078]
[1757507464226,0.4972,4385.6,4384.8,3.2078]
[1757507464621,3.2078,4386.3,4384.8,3.2078]
[1757507464823,0.41,4386.7,4385.8,3.2078]
[1757507465019,3.2078,4386.8,4385.1,0.1529]
[1757507465329,3.2078,4387.0,4386.0,3.2078]
[1757507465624,3.2078,4387.0,4386.1,0.1529]
[1757507465814,3.2078,4387.0,4386.3,3.2078]
[1757507466129,3.2078,4386.4,4384.8,0.1529]
[1757507466317,3.2078,4386.7,4386.4,3.03025427]
[1757507466522,3.2078,4387.4,4386.4,3.03025427]
[1757507466820,3.6188,4387.4,4386.5,3.03025427]
[1757507467023,3.2078,4387.9,4386.5,3.03025427]
[1757507467220,3.3609,4388.4,4386.9,3.2078]
[1757507467416,3.2078,4387.9,4386.6,3.6188]
[1757507467720,3.2078,4388.4,4387.0,3.02267963]
[1757507467923,3.2078,4388.4,4387.3,3.2078]
[1757507468119,3.2078,4388.3,4387.4,0.411]
[1757507468422,0.4972,4392.8,4388.8,0.41007]
[1757507468624,3.2078,4392.1,4390.7,3.2078]
[1757507468822,2.0,4393.0,4391.8,3.2078]
[1757507469124,2.0,4393.0,4391.9,0.412]
[1757507469322,3.2078,4394.4,4392.0,0.412]
[1757507469523,3.2078,4394.4,4392.7,3.2078]
[1757507469729,3.2078,4394.4,4392.0,0.412]
[1757507469730,3.2078,4394.4,4393.5,3.2078]
[1757507469927,3.2078,4394.9,4393.5,3.2078]
[1757507470225,0.503962,4396.4,4393.6,2.97292941]
[1757507470226,3.2078,4395.0,4393.6,2.97292941]
[1757507470425,3.2078,4393.9,4392.0,0.413]
[1757507470728,0.006762,4396.4,4393.1,2.9040319]
[1757507471028,3.2078,4393.7,4393.1,0.413]
[1757507471327,3.2078,4393.7,4393.2,0.413]
[1757507471328,3.26185359,4393.7,4393.2,0.413]
[1757507471523,3.2078,4394.9,4393.3,0.413]
[1757507471828,0.4972,4395.7,4393.9,3.2078]
[1757507471829,5.96965359,4395.7,4393.9,3.2078]
[1757507472023,3.2078,4394.9,4393.9,3.2078]
[1757507472223,3.2078,4394.5,4394.0,3.01382181]
[1757507472424,0.4972,4395.6,4394.0,0.42]
[1757507472627,3.2078,4394.1,4393.7,3.01382181]
[1757507472830,0.4972,4394.0,4392.3,3.2078]
[1757507473129,3.705,4393.2,4391.5,3.2078]
[1757507473328,0.4972,4392.3,4390.7,3.2078]
[1757507473535,0.1531,4392.0,4391.5,3.00671974]
[1757507473734,0.1531,4392.0,4391.1,3.00671974]
[1757507473735,3.705,4391.6,4389.6,0.5315]
[1757507474031,3.2078,4389.8,4387.6,0.5315]
[1757507474229,3.2078,4389.8,4387.5,0.1506]
[1757507474230,3.2078,4389.6,4387.5,0.1506]
[1757507474427,0.1531,4393.5,4389.1,0.5315]
[1757507474428,3.2078,4390.1,4389.1,0.5315]
[1757507474625,3.2078,4390.3,4389.1,3.7393]
[1757507474822,3.2078,4390.5,4389.1,0.5315]
[1757507475030,3.2078,4389.3,4389.0,0.1506]
[1757507475231,3.2078,4389.1,4389.0,0.1506]
[1757507475430,3.2078,4389.1,4388.2,3.2078]
[1757507475630,3.2078,4388.6,4387.5,0.1506]
[1757507475832,3.2078,4387.7,4387.6,0.5315]
[1757507476028,3.6428,4387.9,4386.7,0.5315]
[1757507476231,3.2078,4386.9,4385.0,3.2078]
[1757507476428,3.2078,4385.1,4384.3,0.5315]